bitfinex/quotes_ETHUSD_20260110
["timestamp","ask_amount","ask_price","bid_price","bid_amount"]
[1768074484310,0.30277985,3091.2,3090.8,0.94601113]
[1768074484511,0.001,3091.3,3090.8,0.94601113]
[1768074484723,0.30277988,3091.2,3090.8,0.94601113]
[1768074485037,0.001,3091.3,3090.8,0.94601113]
[1768074485239,0.30278023,3091.2,3090.8,0.94601113]
[1768074485440,0.001,3091.3,3091.0,0.9649311]
[1768074485637,0.30275873,3091.2,3091.0,0.9649311]
[1768074485938,0.001,3091.3,3091.0,0.9649311]
[1768074486138,0.3027585,3091.2,3091.0,0.9649311]
[1768074486339,0.001,3091.3,3091.0,0.9649311]
[1768074486561,0.3027394,3091.2,3091.0,0.9649311]
[1768074486838,0.001,3091.3,3091.0,0.9649311]
[1768074487037,0.30273959,3091.2,3091.0,0.9649311]
[1768074487240,0.001,3091.3,3091.0,0.9649311]
[1768074487443,0.30272362,3091.2,3091.0,0.9649311]
[1768074487622,0.001,3091.3,3091.0,0.9649311]
[1768074487939,0.30272362,3091.2,3091.0,0.9649311]
[1768074488239,0.001,3091.3,3091.0,0.9649311]
[1768074488407,0.30271171,3091.2,3091.0,0.9649311]
[1768074488608,0.001,3091.3,3091.0,0.9649311]
[1768074488841,0.30271174,3091.2,3091.0,0.9649311]
[1768074489044,0.001,3091.3,3091.0,0.9649311]
[1768074489247,0.30271171,3091.2,3091.0,0.9649311]
[1768074489414,0.001,3091.3,3091.0,0.9649311]
[1768074489611,0.30270357,3091.2,3091.0,0.9649311]
[1768074489812,0.001,3091.3,3091.0,0.9649311]
[1768074490012,0.30270357,3091.2,3091.0,0.9649311]
[1768074490224,0.001,3091.3,3091.0,0.9649311]
[1768074490419,0.3026985,3091.2,3091.0,0.9649311]
[1768074490645,0.001,3091.3,3091.0,0.9649311]
[1768074490817,0.30269834,3091.2,3091.0,0.9649311]
[1768074491018,0.001,3091.3,3091.0,0.9649311]
[1768074491244,0.30269834,3091.2,3091.0,0.9649311]
[1768074491574,0.001,3091.3,3091.0,0.9649311]
[1768074491755,0.30269724,3091.2,3091.0,0.9649311]
[1768074492050,0.001,3091.3,3091.0,0.9649311]
[1768074492215,0.30269741,3091.2,3091.0,0.9649311]
[1768074492512,0.001,3091.3,3091.0,0.9649311]
[1768074492710,0.30270113,3091.2,3091.0,0.9649311]
[1768074492914,0.001,3091.3,3091.0,0.9649311]
[1768074493150,0.30270128,3091.2,3091.0,0.9649311]
[1768074493357,0.001,3091.3,3091.0,0.9649311]
[1768074493647,0.30270742,3091.2,3091.0,0.9649311]
[1768074493831,0.001,3091.3,3091.0,0.9649311]
[1768074494037,0.30270717,3091.2,3091.0,0.9649311]
[1768074494338,0.001,3091.3,3091.0,0.9649311]
[1768074494633,0.30271649,3091.2,3091.0,0.9649311]
[1768074494838,0.001,3091.3,3091.0,0.9649311]
[1768074495019,0.30271634,3091.2,3091.0,0.9649311]
[1768074495350,0.001,3091.3,3091.0,0.9649311]
[1768074495558,0.30272917,3091.2,3091.0,0.9649311]
[1768074495756,0.001,3091.3,3091.0,0.9649311]
[1768074495966,0.30272887,3091.2,3090.9,0.002]
[1768074496169,0.001,3091.3,3090.9,0.002]
[1768074496457,0.3027452,3091.2,3090.9,0.002]
[1768074496626,0.001,3091.3,3090.9,0.002]
[1768074496920,0.30274523,3091.2,3090.9,0.002]
[1768074497126,0.001,3091.0,3090.9,0.002]
[1768074507159,0.001,3091.0,3090.9,0.9669311]
[1768074507362,0.255,3091.5,3090.9,0.9669311]
[1768074507363,0.94231777,3092.0,3091.0,0.9649311]
[1768074507671,0.94231777,3092.0,3091.1,0.98433664]
[1768074507672,0.30324099,3091.9,3091.1,0.98433664]
[1768074507857,0.30324099,3091.8,3091.1,0.98433664]
[1768074508049,0.30324099,3091.7,3091.3,0.01940554]
[1768074508250,0.30324099,3091.6,3091.3,0.01940554]
[1768074508447,0.30324099,3091.5,3091.3,0.01940554]
[1768074508638,1.19631777,3091.9,3091.1,0.98433664]
[1768074508838,0.30308779,3091.8,3091.1,0.98433664]
[1768074509079,0.30308779,3091.7,3091.1,0.98433664]
[1768074509373,0.30308779,3091.6,3091.2,0.4219484]
[1768074509670,0.30299486,3091.5,3091.2,0.4219484]
[1768074509870,1.19631777,3091.9,3091.2,0.4219484]
[1768074510073,0.30299658,3091.8,3091.1,0.98433664]
[1768074510280,0.30299658,3091.7,3091.1,0.98433664]
[1768074510505,0.30299658,3091.6,3091.1,0.98433664]
[1768074510650,1.19631777,3091.9,3091.1,0.98433664]
[1768074510848,0.30293769,3091.8,3091.1,0.98433664]
[1768074511081,1.19631777,3091.9,3091.1,1.40648504]
[1768074511082,0.30293769,3091.7,3091.1,1.40648504]
[1768074511246,0.30293769,3091.6,3091.1,1.40648504]
[1768074511448,1.19631777,3091.9,3091.1,1.40648504]
[1768074511647,0.30289002,3091.8,3091.1,1.40648504]
[1768074511849,0.30289002,3091.7,3091.1,1.40648504]
[1768074512179,1.19631777,3091.9,3091.1,1.40648504]
[1768074512482,0.30282562,3091.8,3091.1,1.40648504]
[1768074512686,0.30282562,3091.7,3091.1,1.40648504]
[1768074512979,3.48826202,3091.9,3091.2,0.9649311]
[1768074513187,0.30281986,3091.8,3091.2,0.9649311]
[1768074513361,3.48826202,3091.9,3091.2,0.9649311]
[1768074513362,0.30281986,3091.7,3091.2,0.9649311]
[1768074513564,0.30276035,3091.6,3091.2,0.9649311]
[1768074513777,4.46873533,3091.9,3091.2,0.9649311]
[1768074513962,0.3027596,3091.8,3091.2,0.9649311]
[1768074514164,0.3027596,3091.7,3091.2,0.9649311]
[1768074514346,0.3027596,3091.6,3091.2,0.9649311]
[1768074514546,5.23912555,3091.9,3091.2,0.9649311]
[1768074514762,3.53713843,3091.8,3091.2,0.9649311]
[1768074514961,0.30273631,3091.7,3091.2,0.9649311]
[1768074515177,0.30273631,3091.6,3091.2,0.9649311]
[1768074515384,3.23440212,3091.8,3091.2,0.9649311]
[1768074515570,0.30271748,3091.7,3091.2,0.9649311]
[1768074515773,0.30271748,3091.6,3091.2,0.9649311]
[1768074515963,3.23440212,3091.8,3091.2,0.9649311]
[1768074516161,0.30271748,3091.7,3091.2,0.9649311]
[1768074516362,3.23440212,3091.8,3091.2,0.9649311]
[1768074516561,0.30270136,3091.7,3091.2,0.9649311]
[1768074516763,3.23440212,3091.8,3091.2,0.9649311]
[1768074516985,0.302701,3091.7,3091.2,0.9649311]
[1768074517173,3.23440212,3091.8,3091.2,0.9649311]
[1768074517495,0.30268789,3091.7,3091.2,0.9649311]
[1768074517791,3.23440212,3091.8,3091.2,0.9649311]
[1768074517993,0.30268789,3091.7,3091.2,0.9649311]
[1768074518170,3.23440212,3091.8,3091.2,0.9649311]
[1768074518492,0.30267744,3091.7,3091.2,0.9649311]
[1768074518793,3.23440212,3091.8,3091.2,0.9649311]
[1768074518996,0.30267746,3091.7,3091.2,0.9649311]
[1768074519194,3.23440212,3091.8,3091.2,0.9649311]
[1768074519395,0.30266965,3091.7,3091.2,0.9649311]
[1768074519574,3.23440212,3091.8,3091.2,0.9649311]
[1768074519894,0.001,3091.4,3091.2,0.9649311]
[1768074528808,0.001,3091.4,3090.9,0.002]
[1768074529005,0.001,3091.4,3091.0,0.42113283]
[1768074530903,0.001,3091.4,3091.1,0.95456118]
[1768074531101,0.001,3091.4,3091.3,0.002]
[1768074540218,0.001,3091.4,3091.3,0.90693677]
[1768074540614,0.001,3091.4,3091.3,0.002]
[1768074543418,0.94273282,3091.4,3091.3,0.002]
[1768074546010,1.24595816,3091.4,3091.3,0.002]
[1768074548524,0.30422534,3091.4,3091.3,0.002]
[1768074549125,1.24595816,3091.4,3091.3,0.002]
[1768074552995,0.001,3091.4,3091.3,0.002]
[1768074553431,0.30417553,3091.4,3091.3,0.002]
[1768074577655,0.001,3091.4,3091.3,0.002]
[1768074605778,0.30421408,3091.4,3091.3,0.002]
[1768074606149,0.001,3091.4,3091.3,0.002]
[1768074616982,0.30424156,3091.4,3091.3,0.002]
[1768074678955,0.001,3091.4,3091.3,0.002]
[1768074679449,0.30415727,3091.4,3091.3,0.002]
[1768074695254,0.30413189,3091.4,3091.3,0.002]
[1768074699754,0.001,3091.4,3091.3,0.002]
[1768074699955,0.30413378,3091.4,3091.3,0.002]
[1768074700176,0.001,3091.4,3091.3,0.002]
[1768074702089,0.3041336,3091.4,3091.3,0.002]
[1768074704390,0.001,3091.4,3091.3,0.002]
[1768074705190,0.30413356,3091.4,3091.3,0.002]
[1768074705791,0.001,3091.4,3091.3,0.002]
[1768074726594,0.30410188,3091.4,3091.3,0.002]
[1768074744353,0.30407789,3091.4,3091.3,0.002]
[1768074752854,0.001,3091.4,3091.3,0.002]
[1768074754560,0.30410466,3091.4,3091.3,0.002]
[1768074778945,0.85130189,3091.4,3091.3,0.002]
[1768074779471,0.85130189,3091.4,3091.0,0.002]
[1768074779675,0.30310466,3091.3,3091.0,0.002]
[1768074779853,0.13044711,3091.4,3091.0,0.002]
[1768074780038,0.30305303,3091.3,3091.0,0.002]
[1768074780241,0.13044711,3091.4,3091.0,0.002]
[1768074780473,0.30305213,3091.3,3091.0,0.002]
[1768074780674,0.13044711,3091.4,3091.0,0.002]
[1768074780874,0.30305105,3091.3,3091.0,0.002]
[1768074781063,0.13044711,3091.4,3091.0,0.002]
[1768074781265,0.30305069,3091.3,3091.0,0.002]
[1768074781463,0.13044711,3091.4,3091.0,0.002]
[1768074781667,0.30302118,3091.3,3091.0,0.002]
[1768074781866,0.13044711,3091.4,3091.0,0.002]
[1768074782066,0.30302046,3091.3,3091.0,0.002]
[1768074782381,0.13044711,3091.4,3091.0,0.002]
[1768074782674,0.30299836,3091.3,3091.0,0.002]
[1768074782874,0.13044711,3091.4,3091.0,0.002]
[1768074783171,0.30299846,3091.3,3091.0,0.002]
[1768074783354,0.13044711,3091.4,3091.0,0.002]
[1768074783672,0.30298145,3091.3,3091.0,0.002]
[1768074783867,0.13044711,3091.4,3091.0,0.002]
[1768074784065,0.30298171,3091.3,3091.0,0.002]
[1768074784286,0.13044711,3091.4,3091.0,0.002]
[1768074784572,0.30296868,3091.3,3091.0,0.002]
[1768074784777,0.13044711,3091.4,3091.0,0.002]
[1768074784948,0.30296855,3091.3,3091.0,0.002]
[1768074785147,0.13044711,3091.4,3091.0,0.002]
[1768074785446,0.3029669,3091.3,3091.0,0.002]
[1768074785646,0.13044711,3091.4,3091.0,0.002]
[1768074785973,0.30295809,3091.3,3091.0,0.002]
[1768074786194,0.13044711,3091.4,3091.0,0.002]
[1768074786378,0.30295585,3091.3,3091.0,0.002]
[1768074786579,0.13044711,3091.4,3091.0,0.002]
[1768074786799,0.30294885,3091.3,3091.0,0.002]
[1768074786950,0.13044711,3091.4,3091.0,0.002]
[1768074787249,0.30294885,3091.3,3091.0,0.002]
[1768074787449,0.13044711,3091.4,3091.0,0.002]
[1768074787948,0.30294149,3091.3,3091.0,0.002]
[1768074788178,0.13044711,3091.4,3091.0,0.002]
[1768074788380,0.56319948,3091.4,3091.0,0.002]
[1768074794986,0.56319948,3091.4,3091.3,0.002]
[1768074795151,0.86611999,3091.4,3091.3,0.002]
[1768074806892,5.10361137,3091.4,3091.0,0.002]
[1768074807090,0.30292051,3091.3,3091.0,0.002]
[1768074807992,0.43236762,3091.3,3091.0,0.002]
[1768074808188,0.12944711,3091.3,3091.0,0.002]
[1768074816298,0.30319527,3091.2,3091.0,0.002]
[1768074816481,0.12944711,3091.3,3091.0,0.002]
[1768074816779,0.3031885,3091.2,3091.0,0.002]
[1768074816981,0.12944711,3091.3,3091.0,0.002]
[1768074817179,0.30318849,3091.2,3091.0,0.002]
[1768074817377,0.12944711,3091.3,3091.0,0.002]
[1768074817604,0.30318383,3091.2,3091.0,0.002]
[1768074817902,0.12944711,3091.3,3091.0,0.002]
[1768074818102,0.30318385,3091.2,3091.0,0.002]
[1768074818310,0.12944711,3091.3,3091.0,0.002]
[1768074818499,0.30317962,3091.2,3091.0,0.002]
[1768074818682,0.12944711,3091.3,3091.0,0.002]
[1768074818882,0.30317988,3091.2,3091.0,0.002]
[1768074819083,0.12944711,3091.3,3091.0,0.002]
[1768074819309,0.30317986,3091.2,3091.0,0.002]
[1768074819509,0.12944711,3091.3,3091.0,0.002]
[1768074819681,0.30317605,3091.2,3091.0,0.002]
[1768074819879,0.12944711,3091.3,3091.0,0.002]
[1768074820080,0.30317701,3091.2,3091.0,0.002]
[1768074820281,0.12944711,3091.3,3091.0,0.002]
[1768074820515,0.30317439,3091.2,3091.0,0.002]
[1768074820681,0.12944711,3091.3,3091.0,0.002]
[1768074820880,0.30317414,3091.2,3091.0,0.002]
[1768074821082,0.12944711,3091.3,3091.0,0.002]
[1768074821382,0.30317412,3091.2,3091.0,0.002]
[1768074821679,0.12944711,3091.3,3091.0,0.002]
[1768074821874,0.3031719,3091.2,3091.0,0.002]
[1768074822117,0.12944711,3091.3,3091.0,0.002]
[1768074822320,0.30317215,3091.2,3091.0,0.002]
[1768074822484,0.12944711,3091.3,3091.0,0.002]
[1768074822810,0.30317096,3091.2,3091.0,0.002]
[1768074822984,0.12944711,3091.3,3091.0,0.002]
[1768074823185,0.30317172,3091.2,3091.0,0.002]
[1768074823379,0.12944711,3091.3,3091.0,0.002]
[1768074823580,0.30317137,3091.2,3091.0,0.002]
[1768074823800,0.12944711,3091.3,3091.0,0.002]
[1768074824010,0.30317099,3091.2,3091.0,0.002]
[1768074824210,0.12944711,3091.3,3091.0,0.002]
[1768074824410,0.30317084,3091.2,3091.0,0.002]
[1768074824613,0.12944711,3091.3,3091.0,0.002]
[1768074824806,0.30317102,3091.2,3091.0,0.002]
[1768074825005,0.12944711,3091.3,3091.0,0.002]
[1768074825210,0.30317076,3091.2,3091.0,0.002]
[1768074825501,0.12944711,3091.3,3091.0,0.002]
[1768074825703,0.30317136,3091.2,3091.0,0.002]
[1768074825893,0.12944711,3091.3,3091.0,0.002]
[1768074826095,0.30317305,3091.2,3091.0,0.002]
[1768074826295,0.12944711,3091.3,3091.0,0.002]
[1768074826485,0.30317437,3091.2,3091.0,0.002]
[1768074826701,0.12944711,3091.3,3091.0,0.002]
[1768074826906,0.30317437,3091.2,3091.0,0.002]
[1768074827110,0.12944711,3091.3,3091.0,0.002]
[1768074827313,0.30317464,3091.2,3091.0,0.002]
[1768074827522,0.12944711,3091.3,3091.0,0.002]
[1768074827689,0.30317571,3091.2,3091.0,0.002]
[1768074827988,0.12944711,3091.3,3091.0,0.002]
[1768074828188,0.30317565,3091.2,3091.0,0.002]
[1768074828488,0.12944711,3091.3,3091.0,0.002]
[1768074828789,0.30317721,3091.2,3091.0,0.002]
[1768074829086,0.12944711,3091.3,3091.0,0.002]
[1768074829286,0.30318766,3091.2,3091.0,0.002]
[1768074829521,0.12944711,3091.3,3091.0,0.002]
[1768074829815,0.30318919,3091.2,3091.0,0.002]
[1768074830006,0.12944711,3091.3,3091.0,0.002]
[1768074830207,0.30318951,3091.2,3091.0,0.002]
[1768074830506,0.12944711,3091.3,3091.0,0.002]
[1768074830705,0.30319205,3091.2,3091.0,0.002]
[1768074831004,0.12944711,3091.3,3091.0,0.002]
[1768074831204,0.30319173,3091.2,3091.0,0.002]
[1768074831406,0.12944711,3091.3,3091.0,0.002]
[1768074831606,0.30319565,3091.2,3091.0,0.002]
[1768074831795,0.12944711,3091.3,3091.0,0.002]
[1768074832096,0.30319563,3091.2,3091.0,0.002]
[1768074832295,0.12944711,3091.3,3091.0,0.002]
[1768074832498,0.30320009,3091.2,3091.0,0.002]
[1768074832697,0.12944711,3091.3,3091.0,0.002]
[1768074832897,0.30320049,3091.2,3091.0,0.002]
[1768074833096,0.12944711,3091.3,3091.0,0.002]
[1768074833298,0.30320076,3091.2,3091.0,0.002]
[1768074833486,0.12944711,3091.3,3091.0,0.002]
[1768074833687,0.30320654,3091.2,3091.0,0.002]
[1768074833887,0.12944711,3091.3,3091.0,0.002]
[1768074834113,0.30320653,3091.2,3091.0,0.002]
[1768074834316,0.12944711,3091.3,3091.0,0.002]
[1768074834521,0.30321319,3091.2,3091.0,0.002]
[1768074834697,0.12944711,3091.3,3091.0,0.002]
[1768074834999,0.30321321,3091.2,3091.0,0.002]
[1768074835317,0.12944711,3091.3,3091.0,0.002]
[1768074835616,0.30322237,3091.2,3091.0,0.002]
[1768074835819,0.5092467,3091.3,3091.0,0.002]
[1768074836116,0.30322234,3091.2,3091.0,0.002]
[1768074836314,0.5092467,3091.3,3091.0,0.002]
[1768074836484,0.30323455,3091.2,3091.0,0.002]
[1768074836687,0.5092467,3091.3,3091.0,0.002]
[1768074836887,0.30323473,3091.2,3091.0,0.002]
[1768074837114,0.12944711,3091.3,3091.0,0.002]
[1768074837287,0.30323688,3091.2,3091.0,0.002]
[1768074837483,0.12944711,3091.3,3091.0,0.002]
[1768074837732,0.30323861,3091.2,3091.0,0.002]
[1768074837888,0.12944711,3091.3,3091.0,0.002]
[1768074838182,0.30323835,3091.2,3091.0,0.002]
[1768074838386,0.12944711,3091.3,3091.0,0.002]
[1768074838583,0.30323999,3091.2,3091.0,0.002]
[1768074838787,0.12944711,3091.3,3091.0,0.002]
[1768074839021,0.30324017,3091.2,3091.0,0.002]
[1768074839216,0.12944711,3091.3,3091.0,0.002]
[1768074839520,0.30323985,3091.2,3091.0,0.002]
[1768074839688,0.12944711,3091.3,3091.0,0.002]
[1768074839889,0.30324193,3091.2,3091.0,0.002]
[1768074840120,0.12944711,3091.3,3091.0,0.002]
[1768074840434,0.30324168,3091.2,3091.0,0.002]
[1768074840626,0.59945583,3091.3,3091.0,0.002]
[1768074840834,0.30324331,3091.2,3091.0,0.002]
[1768074840999,0.59945583,3091.3,3091.0,0.002]
[1768074841195,0.30324384,3091.2,3091.0,0.002]
[1768074841396,0.59945583,3091.3,3091.0,0.002]
[1768074841631,0.30324554,3091.2,3091.0,0.002]
[1768074841930,0.59945583,3091.3,3091.0,0.002]
[1768074842099,0.30324478,3091.2,3091.0,0.002]
[1768074842293,0.59945583,3091.3,3091.0,0.002]
[1768074842495,0.30324792,3091.2,3091.0,0.002]
[1768074842717,0.90316781,3091.4,3091.0,0.002]
[1768074842718,0.001,3091.4,3091.0,0.96382397]
[1768074842908,1.15616781,3091.8,3091.0,0.96382397]
[1768074843121,0.90316781,3091.6,3091.0,0.96382397]
[1768074843317,0.30337455,3091.5,3091.1,1.14862315]
[1768074843535,0.96252605,3092.0,3091.2,1.01907392]
[1768074843832,1.2065398,3091.9,3091.3,0.99966838]
[1768074844033,0.30337199,3091.8,3091.3,0.99966838]
[1768074844195,0.90316781,3091.9,3091.5,0.0205713]
[1768074844400,0.30320694,3091.8,3091.5,0.0205713]
[1768074844733,0.90316781,3091.9,3091.5,0.0205713]
[1768074844929,0.30320015,3091.8,3091.5,0.0205713]
[1768074845106,0.90316781,3091.9,3091.5,1.02023968]
[1768074845429,0.30311499,3091.8,3091.5,1.02023968]
[1768074845733,0.90316781,3091.9,3091.5,1.02023968]
[1768074846029,0.30310825,3091.8,3091.5,1.02023968]
[1768074846231,1.34238983,3091.9,3091.5,1.02023968]
[1768074846428,0.30304782,3091.8,3091.5,1.02023968]
[1768074846731,0.90316781,3091.9,3091.5,1.02023968]
[1768074846934,0.30304174,3091.8,3091.5,1.02023968]
[1768074847101,0.90316781,3091.9,3091.5,1.02023968]
[1768074847302,0.3029958,3091.8,3091.5,1.02023968]
[1768074847497,0.90316781,3091.9,3091.5,1.02023968]
[1768074847732,0.30298862,3091.8,3091.5,1.02023968]
[1768074848037,0.90316781,3091.9,3091.5,1.02023968]
[1768074848243,0.30295229,3091.8,3091.5,1.02023968]
[1768074848449,0.90316781,3091.9,3091.5,1.02023968]
[1768074848640,0.30294525,3091.8,3091.5,1.02023968]
[1768074848842,0.90316781,3091.9,3091.5,1.02023968]
[1768074849046,0.30294499,3091.8,3091.5,1.02023968]
[1768074849250,0.90316781,3091.9,3091.5,1.02023968]
[1768074855021,0.001,3092.1,3091.5,1.02023968]
[1768074855225,0.30279807,3092.0,3091.5,1.02023968]
[1768074855551,0.30279807,3091.9,3091.5,1.02023968]
[1768074855764,0.97070571,3092.0,3091.5,1.02023968]
[1768074856838,0.30278256,3091.9,3091.5,1.02023968]
[1768074857142,0.97070571,3092.0,3091.5,1.02023968]
[1768074857335,0.30277785,3091.9,3091.5,1.02023968]
[1768074857534,0.97070571,3092.0,3091.5,1.02023968]
[1768074857767,0.30277697,3091.9,3091.5,1.02023968]
[1768074857968,0.97070571,3092.0,3091.5,1.02023968]
[1768074858171,0.30277721,3091.9,3091.5,1.02023968]
[1768074858338,0.97070571,3092.0,3091.5,1.02023968]
[1768074858662,0.30277543,3091.9,3091.5,1.02023968]
[1768074858870,0.97070571,3092.0,3091.5,1.02023968]
[1768074859054,0.30277532,3091.9,3091.5,1.02023968]
[1768074859257,0.001,3092.1,3091.5,1.02023968]
[1768074859459,0.30277449,3092.0,3091.5,1.02023968]
[1768074859632,0.30277449,3091.9,3091.5,1.02023968]
[1768074859832,0.001,3092.1,3091.5,1.02023968]
[1768074860065,0.30277754,3092.0,3091.5,1.02023968]
[1768074860271,0.30277754,3091.9,3091.5,1.02023968]
[1768074860474,0.001,3092.1,3091.5,1.02023968]
[1768074860776,0.30278364,3092.0,3091.5,1.02023968]
[1768074860961,0.30278364,3091.9,3091.5,1.02023968]
[1768074861150,0.001,3092.1,3091.5,1.02023968]
[1768074861348,0.30278557,3092.0,3091.5,1.02023968]
[1768074861549,0.30278557,3091.9,3091.5,1.02023968]
[1768074861762,0.001,3092.1,3091.5,1.02023968]
[1768074862069,0.30279346,3092.0,3091.5,1.02023968]
[1768074862265,0.30279346,3091.9,3091.5,1.02023968]
[1768074862436,0.001,3092.1,3091.5,1.02023968]
[1768074862769,0.30280858,3092.0,3091.5,1.02023968]
[1768074862938,0.30280858,3091.9,3091.5,1.02023968]
[1768074863133,0.001,3092.1,3091.5,1.02023968]
[1768074863351,0.3028112,3092.0,3091.5,1.02023968]
[1768074863672,0.3028112,3091.9,3091.5,1.02023968]
[1768074863873,0.001,3092.1,3091.5,1.02023968]
[1768074864050,0.30282554,3092.0,3091.5,1.02023968]
[1768074864249,0.30282554,3091.9,3091.5,1.02023968]
[1768074864462,0.001,3091.8,3091.5,1.02023968]
[1768074864973,0.001,3091.8,3091.5,0.99966838]
[1768074873173,0.30340579,3091.7,3091.5,0.99966838]
[1768074873369,0.001,3091.8,3091.5,0.99966838]
[1768074873575,0.30340608,3091.7,3091.5,0.99966838]
[1768074873778,0.001,3091.8,3091.5,0.99966838]
[1768074873970,0.30340579,3091.7,3091.5,0.99966838]
[1768074874178,0.001,3091.8,3091.5,0.99966838]
[1768074874410,0.30340654,3091.7,3091.5,0.99966838]
[1768074874574,0.001,3091.8,3091.5,0.99966838]
[1768074874746,0.30340651,3091.7,3091.5,0.99966838]
[1768074874941,0.001,3091.8,3091.5,0.99966838]
[1768074875246,0.30340625,3091.7,3091.5,0.99966838]
[1768074875445,0.001,3091.8,3091.5,0.99966838]
[1768074875776,0.3034073,3091.7,3091.5,0.99966838]
[1768074875976,0.001,3091.7,3091.5,0.99966838]
[1768074888388,0.001,3091.7,3091.3,0.96187683]
[1768074888557,0.001,3091.7,3091.4,0.41968581]
[1768074894116,0.001,3091.7,3091.3,0.96187683]
[1768074896309,0.001,3091.7,3091.1,0.91996712]
[1768074896612,0.30344247,3091.6,3091.1,0.91996712]
[1768074896813,0.001,3091.7,3091.1,0.91996712]
[1768074897112,0.30343984,3091.6,3091.1,0.91996712]
[1768074897289,0.001,3091.7,3091.2,0.44111448]
[1768074897606,0.30341095,3091.6,3091.2,0.44111448]
[1768074897906,0.001,3091.7,3091.2,0.44111448]
[1768074898109,0.3034107,3091.6,3091.2,0.44111448]
[1768074898311,0.001,3091.7,3091.2,0.44111448]
[1768074898482,0.30339644,3091.6,3091.2,0.44111448]
[1768074898778,0.001,3091.7,3091.2,0.44111448]
[1768074898985,0.30339641,3091.6,3091.2,0.44111448]
[1768074899185,0.001,3091.7,3091.2,0.44111448]
[1768074899420,0.3033854,3091.6,3091.2,0.44111448]
[1768074899704,0.001,3091.7,3091.2,0.44111448]
[1768074899893,0.30338511,3091.6,3091.2,1.3610816]
[1768074900086,0.001,3091.7,3091.4,0.002]
[1768074900286,0.3033841,3091.6,3091.4,0.002]
[1768074900500,0.001,3091.7,3091.4,0.002]
[1768074900814,0.3033841,3091.6,3091.4,0.002]
[1768074901012,0.001,3091.7,3091.4,0.002]
[1768074901226,0.3033845,3091.6,3091.4,0.002]
[1768074901397,0.001,3091.7,3091.4,0.002]
[1768074901720,0.90322354,3091.7,3091.4,0.002]
[1768074901885,1.20558404,3091.6,3091.4,0.002]
[1768074902086,0.3033605,3091.5,3091.4,0.002]
[1768074907219,0.90222354,3091.6,3091.4,0.002]
[1768074908122,0.001,3091.7,3091.4,0.002]
[1768074908326,0.30307213,3091.6,3091.4,0.002]
[1768074908629,0.001,3091.7,3091.4,0.002]
[1768074908923,0.30307234,3091.6,3091.4,0.002]
[1768074909124,0.001,3091.7,3091.4,0.002]
[1768074909422,0.30306263,3091.6,3091.4,0.002]
[1768074909624,0.001,3091.7,3091.4,0.002]
[1768074909788,0.3030634,3091.6,3091.4,0.002]
[1768074909989,0.001,3091.7,3091.4,0.002]
[1768074910189,0.3030634,3091.6,3091.4,0.002]
[1768074910422,0.001,3091.7,3091.4,0.002]
[1768074910597,0.30305507,3091.6,3091.4,0.002]
[1768074910794,0.001,3091.7,3091.4,0.002]
[1768074910998,0.30305505,3091.6,3091.4,0.002]
[1768074911225,0.001,3091.7,3091.4,0.002]
[1768074911420,0.30304953,3091.6,3091.4,0.002]
[1768074911722,0.30304417,3091.5,3091.4,0.002]
[1768074913926,0.001,3091.7,3091.4,0.002]
[1768074956588,3.23546647,3091.7,3091.4,0.002]
[1768074960894,0.001,3091.7,3091.4,0.002]
[1768074995909,0.001,3091.7,3091.4,0.91560076]
[1768074997245,0.001,3091.7,3091.4,0.002]
[1768075021264,0.001,3091.7,3091.4,0.93765556]
[1768075037802,0.001,3091.7,3091.4,0.002]
[1768075041113,0.91736962,3091.7,3091.4,0.002]
[1768075048324,0.91736962,3091.7,3091.0,0.002]
[1768075048325,0.97101514,3091.6,3091.0,0.002]
[1768075048621,0.97101514,3091.5,3091.0,0.002]
[1768075048827,0.04043475,3091.4,3091.0,0.002]
[1768075049001,1.01144989,3091.4,3091.0,0.002]
[1768075049201,1.21077516,3091.4,3091.0,0.002]
[1768075049402,0.12945926,3091.3,3091.0,0.002]
[1768075052617,0.12945926,3091.3,3091.0,0.91836962]
[1768075053133,0.38345926,3091.3,3091.0,0.91836962]
[1768075053329,0.12945926,3091.3,3091.0,0.91836962]
[1768075067466,0.12945926,3091.3,3091.0,0.002]
[1768075072434,0.12945926,3091.3,3091.0,0.99806344]
[1768075095761,0.254,3091.6,3091.0,0.99806344]
[1768075096087,0.001,3091.7,3091.3,0.94397009]
[1768075096088,0.97085336,3091.5,3091.3,0.94397009]
[1768075096270,0.255,3091.7,3091.3,0.94397009]
[1768075096467,1.22580309,3091.7,3091.3,0.94397009]
[1768075096857,0.97180309,3091.7,3091.3,0.94397009]
[1768075101486,0.001,3091.7,3091.3,0.94397009]
[1768075107690,0.001,3091.4,3091.3,0.94397009]
[1768075112680,0.001,3091.7,3091.4,0.94197009]
[1768075123887,0.001,3091.7,3091.3,0.002]
[1768075126096,0.98047067,3091.7,3091.3,0.002]
[1768075131717,0.001,3091.4,3091.3,0.002]
[1768075154952,0.13043999,3091.8,3091.5,0.911818]
[1768075155165,0.001,3092.1,3091.7,0.01940554]
[1768075155371,0.001,3092.1,3091.7,0.93122354]
[1768075161724,0.001,3092.1,3091.7,1.34974948]
[1768075165757,0.001,3091.8,3091.7,1.34974948]
[1768075165965,0.001,3092.1,3091.7,0.43793148]
[1768075171148,0.001,3092.1,3091.7,1.34974948]
[1768075176142,0.001,3092.1,3091.7,1.33034394]
[1768075177163,0.001,3092.1,3091.8,0.45648851]
[1768075181272,0.001,3092.1,3091.8,1.44134174]
[1768075185251,0.001,3092.1,3091.8,1.45141141]
[1768075185450,0.001,3092.1,3091.8,1.44134174]
[1768075187189,0.001,3092.1,3091.8,0.45648851]
[1768075189493,0.001,3092.1,3091.8,3.69084905]
[1768075189797,0.001,3092.1,3091.9,0.36908491]
[1768075194366,0.001,3092.1,3091.9,1.36763349]